[Event "*** SCC Grand Prix: Titled Tuesday Blitz"]
[Site "Chess.com"]
[Date "2020.10.13"]
[Round "1"]
[White "JoliyRoger"]
[Black "Beca95"]
[Result "0-1"]
[WhiteElo "2469"]
[BlackElo "2909"]
[TimeControl "180+1"]
[EndTime "10:06:51 PDT"]
[Termination "Beca95 won by resignation"]

1. Nf3 {[%clk 0:03:00.9]} 1... d5 {[%clk 0:02:58.8]} 2. c4 {[%clk 0:03:00.4]}
2... d4 {[%clk 0:02:58.3]} 3. d3 {[%clk 0:03:00.3]} 3... Nc6 {[%clk 0:02:57.6]}
4. e3 {[%clk 0:02:58.7]} 4... Bg4 {[%clk 0:02:54.3]} 5. Be2 {[%clk 0:02:55.9]}
5... h5 {[%clk 0:02:46.9]} 6. h3 {[%clk 0:02:47.8]} 6... Bxf3 {[%clk 0:02:46.1]}
7. Bxf3 {[%clk 0:02:48.3]} 7... e5 {[%clk 0:02:46.3]} 8. O-O {[%clk 0:02:38.9]}
8... dxe3 {[%clk 0:02:46.2]} 9. Bxe3 {[%clk 0:02:38.4]} 9... Nf6 {[%clk
0:02:46.2]} 10. Nc3 {[%clk 0:02:28.1]} 10... Be7 {[%clk 0:02:44.5]} 11. Re1
{[%clk 0:01:47.7]} 11... Qd7 {[%clk 0:02:39.7]} 12. Nd5 {[%clk 0:01:32.6]} 12...
Nxd5 {[%clk 0:02:36]} 13. cxd5 {[%clk 0:01:19.9]} 13... Nd4 {[%clk 0:02:35.8]}
14. Bxd4 {[%clk 0:01:19.2]} 14... exd4 {[%clk 0:02:36.7]} 15. Bxh5 {[%clk
0:01:16]} 15... g6 {[%clk 0:02:36.5]} 16. Bg4 {[%clk 0:01:05.6]} 16... Qd6
{[%clk 0:02:36.6]} 17. Qb3 {[%clk 0:00:59.2]} 17... Rb8 {[%clk 0:02:33.4]} 18.
Qc4 {[%clk 0:00:45.4]} 18... Kf8 {[%clk 0:02:31.8]} 19. Rac1 {[%clk 0:00:38.1]}
19... Kg7 {[%clk 0:02:27.3]} 20. Qxc7 {[%clk 0:00:36.9]} 20... Qxc7 {[%clk
0:02:27.3]} 21. Rxc7 {[%clk 0:00:37.5]} 21... Bd6 {[%clk 0:02:27.6]} 22. Rd7
{[%clk 0:00:38]} 22... Rhd8 {[%clk 0:02:27.3]} 23. Rxd8 {[%clk 0:00:25.6]} 23...
Rxd8 {[%clk 0:02:28.2]} 24. h4 {[%clk 0:00:22.8]} 24... Bc5 {[%clk 0:02:19.6]}
25. Bf3 {[%clk 0:00:21.7]} 25... Bb4 {[%clk 0:02:17.4]} 26. Re2 {[%clk
0:00:20.2]} 26... Rc8 {[%clk 0:02:17]} 27. g3 {[%clk 0:00:20.8]} 27... Bd6
{[%clk 0:02:14.7]} 28. Kg2 {[%clk 0:00:21.1]} 28... b5 {[%clk 0:02:14.8]} 29. a3
{[%clk 0:00:20.9]} 29... a5 {[%clk 0:02:14.6]} 30. Be4 {[%clk 0:00:19.8]} 30...
a4 {[%clk 0:02:11.6]} 31. Bf3 {[%clk 0:00:20.1]} 31... Rc1 {[%clk 0:02:10.3]}
32. Bg4 {[%clk 0:00:18.4]} 32... Kf6 {[%clk 0:02:09.4]} 33. h5 {[%clk 0:00:18]}
33... gxh5 {[%clk 0:02:03.8]} 34. Bxh5 {[%clk 0:00:18.3]} 34... Rb1 {[%clk
0:02:03.9]} 35. Bf3 {[%clk 0:00:18.2]} 35... Rc1 {[%clk 0:01:58.9]} 36. Bg4
{[%clk 0:00:18.2]} 36... Be5 {[%clk 0:01:56.4]} 37. Bd7 {[%clk 0:00:18.4]} 37...
Rc5 {[%clk 0:01:53.1]} 38. Bc6 {[%clk 0:00:19]} 38... Bd6 {[%clk 0:01:53.4]} 39.
f4 {[%clk 0:00:19.5]} 39... Kf5 {[%clk 0:01:52.9]} 40. Kf3 {[%clk 0:00:19.9]}
40... Kg6 {[%clk 0:01:52.7]} 41. g4 {[%clk 0:00:20.5]} 41... Kg7 {[%clk
0:01:53.2]} 42. g5 {[%clk 0:00:20.9]} 42... Rc1 {[%clk 0:01:51.1]} 43. Rf2
{[%clk 0:00:20.3]} 43... Rd1 {[%clk 0:01:48.4]} 44. Ke4 {[%clk 0:00:20.8]} 44...
Re1+ {[%clk 0:01:46.7]} 45. Kxd4 {[%clk 0:00:21]} 45... Bb8 {[%clk 0:01:47]} 46.
Kc5 {[%clk 0:00:20.1]} 46... Ba7+ {[%clk 0:01:46.8]} 47. Kxb5 {[%clk 0:00:21]}
47... Bxf2 {[%clk 0:01:46.9]} 48. d6 {[%clk 0:00:21.4]} 48... Rb1 {[%clk
0:01:41.4]} 49. Kxa4 {[%clk 0:00:19.3]} 49... Rxb2 {[%clk 0:01:39]} 50. d7
{[%clk 0:00:18.4]} 50... Bb6 {[%clk 0:01:38.4]} 51. f5 {[%clk 0:00:17.1]} 51...
f6 {[%clk 0:01:38.2]} 52. gxf6+ {[%clk 0:00:16.9]} 52... Kxf6 {[%clk 0:01:37.8]}
53. d4 {[%clk 0:00:17.2]} 53... Kxf5 {[%clk 0:01:36.4]} 54. d5 {[%clk
0:00:18.1]} 54... Bd8 {[%clk 0:01:35.9]} 55. Bb5 {[%clk 0:00:17.4]} 55... Ke5
{[%clk 0:01:35.8]} 56. Bc6 {[%clk 0:00:17.5]} 56... Kd6 {[%clk 0:01:35.8]} 57.
Bb5 {[%clk 0:00:15]} 57... Kxd5 {[%clk 0:01:35.7]} 58. Ba6 {[%clk 0:00:14.4]}
58... Rb6 {[%clk 0:01:32.4]} 59. Bb5 {[%clk 0:00:13.5]} 59... Kc5 {[%clk
0:01:32.3]} 60. Bd3 {[%clk 0:00:12.7]} 60... Rd6 {[%clk 0:01:28.4]} 0-1

[Event "*** SCC Grand Prix: Titled Tuesday Blitz"]
[Site "Chess.com"]
[Date "2020.10.13"]
[Round "1"]
[White "chessfrendz"]
[Black "Nikolakis2014"]
[Result "0-1"]
[WhiteElo "2381"]
[BlackElo "2737"]
[TimeControl "180+1"]
[EndTime "10:06:51 PDT"]
[Termination "Nikolakis2014 won on time"]

1. d4 {[%clk 0:03:00.1]} 1... Nf6 {[%clk 0:02:59.1]} 2. Nf3 {[%clk 0:02:53.3]}
2... g6 {[%clk 0:02:56.8]} 3. c4 {[%clk 0:02:52.3]} 3... Bg7 {[%clk 0:02:55.9]}
4. Nc3 {[%clk 0:02:52.9]} 4... O-O {[%clk 0:02:55]} 5. e4 {[%clk 0:02:52.7]}
5... d6 {[%clk 0:02:55]} 6. Be2 {[%clk 0:02:53.2]} 6... Na6 {[%clk 0:02:53.8]}
7. O-O {[%clk 0:02:53.2]} 7... e5 {[%clk 0:02:53.8]} 8. Be3 {[%clk 0:02:51.6]}
8... c6 {[%clk 0:02:53.3]} 9. d5 {[%clk 0:02:06.9]} 9... Ng4 {[%clk 0:02:51.5]}
10. Bg5 {[%clk 0:02:03.3]} 10... f6 {[%clk 0:02:51.3]} 11. Bc1 {[%clk
0:02:02.1]} 11... f5 {[%clk 0:02:47.8]} 12. h3 {[%clk 0:02:01.6]} 12... Nf6
{[%clk 0:02:45.8]} 13. dxc6 {[%clk 0:02:01.1]} 13... bxc6 {[%clk 0:02:42.9]} 14.
Be3 {[%clk 0:00:44.7]} 14... f4 {[%clk 0:02:04.5]} 15. Bc1 {[%clk 0:00:42.8]}
15... Nc5 {[%clk 0:02:04.4]} 16. Qc2 {[%clk 0:00:36.7]} 16... a5 {[%clk
0:02:03.3]} 17. Rd1 {[%clk 0:00:33.7]} 17... Qe7 {[%clk 0:02:03.2]} 18. b3
{[%clk 0:00:27.9]} 18... Ne6 {[%clk 0:01:52.5]} 19. Ba3 {[%clk 0:00:26]} 19...
c5 {[%clk 0:01:52.6]} 20. Nd5 {[%clk 0:00:24.9]} 20... Nxd5 {[%clk 0:01:49.7]}
21. cxd5 {[%clk 0:00:24.5]} 21... Nd4 {[%clk 0:01:30.4]} 22. Nxd4 {[%clk
0:00:23.9]} 22... exd4 {[%clk 0:01:30.5]} 23. Rac1 {[%clk 0:00:22.6]} 23... f3
{[%clk 0:01:21.7]} 24. Bxf3 {[%clk 0:00:21.4]} 24... Rxf3 {[%clk 0:01:20.8]} 25.
gxf3 {[%clk 0:00:20.4]} 25... Be5 {[%clk 0:00:59.4]} 26. Qd2 {[%clk 0:00:18.6]}
26... Qh4 {[%clk 0:00:57.2]} 27. Kf1 {[%clk 0:00:06.4]} 27... Qxh3+ {[%clk
0:00:55.2]} 28. Ke2 {[%clk 0:00:05.8]} 28... a4 {[%clk 0:00:32.5]} 29. b4 {[%clk
0:00:04.4]} 29... Ba6+ {[%clk 0:00:32.3]} 30. b5 {[%clk 0:00:01.2]} 30... Bxb5+
{[%clk 0:00:31.7]} 0-1

[Event "*** SCC Grand Prix: Titled Tuesday Blitz"]
[Site "Chess.com"]
[Date "2020.10.13"]
[Round "1"]
[White "Iskusnyh"]
[Black "tan275"]
[Result "1-0"]
[WhiteElo "2571"]
[BlackElo "2234"]
[TimeControl "180+1"]
[EndTime "10:06:51 PDT"]
[Termination "Iskusnyh won on time"]

1. d4 {[%clk 0:02:45.6]} 1... d5 {[%clk 0:02:58.2]} 2. c4 {[%clk 0:02:45.5]}
2... e6 {[%clk 0:02:58.1]} 3. Nf3 {[%clk 0:02:44.3]} 3... Nf6 {[%clk 0:02:57.8]}
4. g3 {[%clk 0:02:44.7]} 4... dxc4 {[%clk 0:02:56.3]} 5. Bg2 {[%clk 0:02:44.2]}
5... c5 {[%clk 0:02:56.8]} 6. O-O {[%clk 0:02:41.8]} 6... Nc6 {[%clk 0:02:56.6]}
7. Na3 {[%clk 0:02:40.7]} 7... cxd4 {[%clk 0:02:45.4]} 8. Nxc4 {[%clk
0:02:40.4]} 8... Be7 {[%clk 0:02:38.6]} 9. Bf4 {[%clk 0:02:26.5]} 9... Nh5
{[%clk 0:02:08]} 10. Bd2 {[%clk 0:01:59.4]} 10... O-O {[%clk 0:02:01.3]} 11. Rc1
{[%clk 0:01:59.1]} 11... Bd7 {[%clk 0:01:52.9]} 12. Qb3 {[%clk 0:01:57.2]} 12...
Rc8 {[%clk 0:01:13.4]} 13. Rfd1 {[%clk 0:01:47.9]} 13... b6 {[%clk 0:01:01.7]}
14. Be1 {[%clk 0:01:42.7]} 14... Bc5 {[%clk 0:00:58.3]} 15. a3 {[%clk 0:01:32]}
15... Qf6 {[%clk 0:00:50.1]} 16. Qd3 {[%clk 0:01:21.3]} 16... e5 {[%clk
0:00:47.1]} 17. b4 {[%clk 0:01:20.6]} 17... Be7 {[%clk 0:00:40.8]} 18. b5 {[%clk
0:01:19.8]} 18... Na5 {[%clk 0:00:20.4]} 19. Ncxe5 {[%clk 0:01:12]} 19... Bf5
{[%clk 0:00:16.5]} 20. e4 {[%clk 0:00:55.1]} 20... Rxc1 {[%clk 0:00:13.7]} 21.
Rxc1 {[%clk 0:00:53.5]} 21... Bg4 {[%clk 0:00:13.3]} 22. Bxa5 {[%clk 0:00:51.6]}
22... Bxf3 {[%clk 0:00:11.7]} 23. Nxf3 {[%clk 0:00:46.5]} 23... bxa5 {[%clk
0:00:11.5]} 24. Rc6 {[%clk 0:00:42.1]} 24... Bd6 {[%clk 0:00:04]} 25. e5 {[%clk
0:00:41.3]} 25... Qe6 {[%clk 0:00:02.4]} 26. Rxd6 {[%clk 0:00:38.8]} 26... Qa2
{[%clk 0:00:02.2]} 27. h3 {[%clk 0:00:35.4]} 27... Rc8 {[%clk 0:00:02.4]} 28.
Qf5 {[%clk 0:00:33.6]} 28... Rc1+ {[%clk 0:00:01.8]} 29. Kh2 {[%clk 0:00:33.3]}
29... g6 {[%clk 0:00:01.1]} 30. Qg5 {[%clk 0:00:30.3]} 1-0

[Event "*** SCC Grand Prix: Titled Tuesday Blitz"]
[Site "Chess.com"]
[Date "2020.10.13"]
[Round "1"]
[White "Thee-Chessboy"]
[Black "dretch"]
[Result "0-1"]
[WhiteElo "2443"]
[BlackElo "2843"]
[TimeControl "180+1"]
[EndTime "10:06:52 PDT"]
[Termination "dretch won by resignation"]

1. d4 {[%clk 0:02:58.2]} 1... d5 {[%clk 0:02:59.8]} 2. c4 {[%clk 0:02:58.5]}
2... c6 {[%clk 0:03:00.1]} 3. Nf3 {[%clk 0:02:59.1]} 3... Nf6 {[%clk 0:02:59.7]}
4. Qc2 {[%clk 0:02:59.6]} 4... dxc4 {[%clk 0:02:56.3]} 5. Qxc4 {[%clk
0:02:58.9]} 5... Bf5 {[%clk 0:02:56.3]} 6. Nc3 {[%clk 0:02:59.2]} 6... e6 {[%clk
0:02:51.2]} 7. Bg5 {[%clk 0:02:56.8]} 7... Be7 {[%clk 0:02:48.6]} 8. e3 {[%clk
0:02:56.7]} 8... Nbd7 {[%clk 0:02:46.1]} 9. Be2 {[%clk 0:02:56.2]} 9... h6
{[%clk 0:02:35.6]} 10. Bh4 {[%clk 0:02:55.3]} 10... O-O {[%clk 0:02:33.8]} 11.
O-O {[%clk 0:02:54.7]} 11... Ne4 {[%clk 0:02:26.3]} 12. Bxe7 {[%clk 0:02:53.4]}
12... Qxe7 {[%clk 0:02:26.4]} 13. Nxe4 {[%clk 0:02:50.3]} 13... Bxe4 {[%clk
0:02:26.2]} 14. Nd2 {[%clk 0:02:50.8]} 14... Bd5 {[%clk 0:02:25.2]} 15. Qc2
{[%clk 0:02:50]} 15... e5 {[%clk 0:02:24.7]} 16. dxe5 {[%clk 0:02:38.2]} 16...
Qxe5 {[%clk 0:02:20.1]} 17. Nf3 {[%clk 0:02:37]} 17... Qf6 {[%clk 0:02:11.4]}
18. Rfd1 {[%clk 0:02:23.3]} 18... Rfd8 {[%clk 0:01:58.5]} 19. a3 {[%clk
0:02:16.9]} 19... Nf8 {[%clk 0:01:51.4]} 20. Rd2 {[%clk 0:02:00.7]} 20... Bxf3
{[%clk 0:01:12.2]} 21. Bxf3 {[%clk 0:02:01.6]} 21... Rxd2 {[%clk 0:01:11.6]} 22.
Qxd2 {[%clk 0:01:59]} 22... Rd8 {[%clk 0:01:11.4]} 23. Qb4 {[%clk 0:01:59.4]}
23... Rd7 {[%clk 0:01:10.7]} 24. Rd1 {[%clk 0:01:56.4]} 24... Qd8 {[%clk
0:00:46.8]} 25. Rxd7 {[%clk 0:01:52.9]} 25... Qxd7 {[%clk 0:00:47.7]} 26. Qd4
{[%clk 0:01:40.1]} 26... Qxd4 {[%clk 0:00:34.4]} 27. exd4 {[%clk 0:01:41]} 27...
Nd7 {[%clk 0:00:32.5]} 28. Kf1 {[%clk 0:01:36.7]} 28... Nb6 {[%clk 0:00:23.7]}
29. b3 {[%clk 0:01:35]} 29... Kf8 {[%clk 0:00:21.6]} 30. Ke2 {[%clk 0:01:34.9]}
30... Ke7 {[%clk 0:00:21.9]} 31. Kd3 {[%clk 0:01:30]} 31... Kd6 {[%clk
0:00:20.3]} 32. h4 {[%clk 0:01:30.1]} 32... Nd5 {[%clk 0:00:20.4]} 33. g3 {[%clk
0:01:27.4]} 33... a5 {[%clk 0:00:19.6]} 34. Bg4 {[%clk 0:01:24.2]} 34... Nc7
{[%clk 0:00:19.4]} 35. Kc4 {[%clk 0:01:20.8]} 35... Nb5 {[%clk 0:00:18.9]} 36.
a4 {[%clk 0:01:18.2]} 36... Nc7 {[%clk 0:00:19.1]} 37. b4 {[%clk 0:01:00.1]}
37... b5+ {[%clk 0:00:18.8]} 38. axb5 {[%clk 0:00:59.3]} 38... cxb5+ {[%clk
0:00:19.7]} 39. Kc3 {[%clk 0:00:58.9]} 39... Nd5+ {[%clk 0:00:19.3]} 40. Kb3
{[%clk 0:00:58.8]} 40... Nxb4 {[%clk 0:00:19.8]} 41. Be2 {[%clk 0:00:58.3]}
41... Kc6 {[%clk 0:00:19.1]} 42. Bf3+ {[%clk 0:00:58.2]} 42... Kb6 {[%clk
0:00:19.6]} 43. Be4 {[%clk 0:00:56.9]} 43... Nc6 {[%clk 0:00:19.5]} 44. d5
{[%clk 0:00:55.4]} 44... Ne5 {[%clk 0:00:18.1]} 45. f4 {[%clk 0:00:55.4]} 45...
Nc4 {[%clk 0:00:17.9]} 46. Bd3 {[%clk 0:00:52.6]} 46... Nd6 {[%clk 0:00:18.8]}
0-1

[Event "*** SCC Grand Prix: Titled Tuesday Blitz"]
[Site "Chess.com"]
[Date "2020.10.13"]
[Round "1"]
[White "ZverevLev"]
[Black "IwkooO"]
[Result "0-1"]
[WhiteElo "2320"]
[BlackElo "2651"]
[TimeControl "180+1"]
[EndTime "10:06:52 PDT"]
[Termination "IwkooO won by resignation"]

1. e4 {[%clk 0:03:00.7]} 1... c5 {[%clk 0:03:00.3]} 2. Nf3 {[%clk 0:02:59.5]}
2... e6 {[%clk 0:03:00.6]} 3. d4 {[%clk 0:02:58.3]} 3... cxd4 {[%clk 0:03:01.5]}
4. Nxd4 {[%clk 0:02:57]} 4... Nc6 {[%clk 0:03:01.4]} 5. Nc3 {[%clk 0:02:54.9]}
5... a6 {[%clk 0:03:01.2]} 6. Be3 {[%clk 0:02:49.1]} 6... Nf6 {[%clk 0:03:00.7]}
7. f4 {[%clk 0:02:46.9]} 7... Bb4 {[%clk 0:02:56.5]} 8. Bd3 {[%clk 0:02:38]}
8... Qc7 {[%clk 0:02:01.2]} 9. O-O {[%clk 0:02:34.6]} 9... Nxd4 {[%clk
0:01:42.8]} 10. Bxd4 {[%clk 0:02:23]} 10... Bc5 {[%clk 0:01:43.3]} 11. Bxc5
{[%clk 0:02:13.9]} 11... Qxc5+ {[%clk 0:01:44.2]} 12. Kh1 {[%clk 0:02:14.1]}
12... d6 {[%clk 0:01:45.1]} 13. Qe2 {[%clk 0:02:12.1]} 13... e5 {[%clk
0:01:36.6]} 14. fxe5 {[%clk 0:02:07.2]} 14... dxe5 {[%clk 0:01:37.5]} 15. h3
{[%clk 0:02:03.3]} 15... Be6 {[%clk 0:01:35.2]} 16. Rad1 {[%clk 0:01:57.8]}
16... h5 {[%clk 0:01:31.5]} 17. Qf2 {[%clk 0:01:52.7]} 17... Qxf2 {[%clk
0:01:25.1]} 18. Rxf2 {[%clk 0:01:53.6]} 18... h4 {[%clk 0:01:23.7]} 19. Rfd2
{[%clk 0:01:49.3]} 19... Ke7 {[%clk 0:01:21.8]} 20. Be2 {[%clk 0:01:48]} 20...
Rhd8 {[%clk 0:01:08.5]} 21. Rxd8 {[%clk 0:01:44.6]} 21... Rxd8 {[%clk
0:01:09.4]} 22. Rxd8 {[%clk 0:01:44.6]} 22... Kxd8 {[%clk 0:01:10.3]} 23. Kg1
{[%clk 0:01:44.8]} 23... Kc7 {[%clk 0:01:10.7]} 24. Kf2 {[%clk 0:01:45]} 24...
Kd6 {[%clk 0:01:11.1]} 25. Ke3 {[%clk 0:01:44.1]} 25... b5 {[%clk 0:01:10.5]}
26. a3 {[%clk 0:01:33.6]} 26... Kc5 {[%clk 0:01:08.4]} 27. Nb1 {[%clk
0:01:28.6]} 27... Ne8 {[%clk 0:00:59]} 28. Nd2 {[%clk 0:01:26.5]} 28... f6
{[%clk 0:00:58.9]} 29. Nf3 {[%clk 0:01:22]} 29... g5 {[%clk 0:00:58.7]} 30. Nd2
{[%clk 0:01:22]} 30... Nd6 {[%clk 0:00:57.1]} 31. b3 {[%clk 0:01:18.3]} 31... a5
{[%clk 0:00:55.3]} 32. Nb1 {[%clk 0:00:56.5]} 32... f5 {[%clk 0:00:40.4]} 33.
Nd2 {[%clk 0:00:43.7]} 33... g4 {[%clk 0:00:27.7]} 34. exf5 {[%clk 0:00:38.7]}
34... gxh3 {[%clk 0:00:25.7]} 35. Kf2 {[%clk 0:00:39.1]} 35... h2 {[%clk
0:00:25.3]} 36. fxe6 {[%clk 0:00:28.8]} 36... h1=Q {[%clk 0:00:25.7]} 37. e7
{[%clk 0:00:28.4]} 37... Qh2 {[%clk 0:00:25.6]} 38. Ne4+ {[%clk 0:00:27.7]}
38... Nxe4+ {[%clk 0:00:25.6]} 0-1

[Event "*** SCC Grand Prix: Titled Tuesday Blitz"]
[Site "Chess.com"]
[Date "2020.10.13"]
[Round "1"]
[White "BilodeauA"]
[Black "Caterpiller35"]
[Result "1-0"]
[WhiteElo "2914"]
[BlackElo "2469"]
[TimeControl "180+1"]
[EndTime "10:06:53 PDT"]
[Termination "BilodeauA won by checkmate"]

1. d4 {[%clk 0:03:00.8]} 1... Nf6 {[%clk 0:02:59.5]} 2. Nc3 {[%clk 0:03:01.1]}
2... d5 {[%clk 0:02:52.4]} 3. Bf4 {[%clk 0:03:00.7]} 3... c6 {[%clk 0:02:52.2]}
4. e3 {[%clk 0:02:59.9]} 4... Qa5 {[%clk 0:02:46.8]} 5. Bd3 {[%clk 0:02:56]}
5... Ne4 {[%clk 0:02:33.3]} 6. Ne2 {[%clk 0:02:56]} 6... Nd7 {[%clk 0:02:27.2]}
7. Bxe4 {[%clk 0:02:48.1]} 7... dxe4 {[%clk 0:02:28.1]} 8. O-O {[%clk
0:02:48.6]} 8... g5 {[%clk 0:02:03.8]} 9. Bg3 {[%clk 0:02:36.7]} 9... h5 {[%clk
0:02:03.1]} 10. f4 {[%clk 0:02:05.4]} 10... exf3 {[%clk 0:01:46]} 11. Rxf3
{[%clk 0:02:05.4]} 11... Nf6 {[%clk 0:01:46.2]} 12. Be5 {[%clk 0:02:05]} 12...
Bg4 {[%clk 0:01:19.9]} 13. Ng3 {[%clk 0:01:57.2]} 13... O-O-O {[%clk 0:01:08.1]}
14. h3 {[%clk 0:01:47.3]} 14... Bxf3 {[%clk 0:00:49.7]} 15. Qxf3 {[%clk
0:01:48.2]} 15... g4 {[%clk 0:00:15.4]} 16. Qf5+ {[%clk 0:01:47.4]} 16... Rd7
{[%clk 0:00:15.6]} 17. h4 {[%clk 0:01:47]} 17... Bh6 {[%clk 0:00:13.5]} 18. Re1
{[%clk 0:01:47.1]} 18... Qb4 {[%clk 0:00:08.4]} 19. Re2 {[%clk 0:01:33.8]} 19...
Qxb2 {[%clk 0:00:07.8]} 20. d5 {[%clk 0:01:27.5]} 20... Qc1+ {[%clk 0:00:07.4]}
21. Kh2 {[%clk 0:01:28]} 21... Bxe3 {[%clk 0:00:05]} 22. Nf1 {[%clk 0:01:00.6]}
22... g3+ {[%clk 0:00:04.8]} 23. Bxg3 {[%clk 0:00:42.9]} 23... Ng4+ {[%clk
0:00:04.1]} 24. Kh3 {[%clk 0:00:43.6]} 24... Rg8 {[%clk 0:00:03.5]} 25. dxc6
{[%clk 0:00:41.7]} 25... bxc6 {[%clk 0:00:03.7]} 26. Ne4 {[%clk 0:00:28.4]}
26... e6 {[%clk 0:00:03.4]} 27. Qf3 {[%clk 0:00:28.7]} 27... f5 {[%clk 0:00:03]}
28. Nc5 {[%clk 0:00:23.8]} 28... Bxc5 {[%clk 0:00:02.7]} 29. Qxc6+ {[%clk
0:00:24.1]} 29... Rc7 {[%clk 0:00:03.1]} 30. Qxc7# {[%clk 0:00:24]} 1-0

[Event "*** SCC Grand Prix: Titled Tuesday Blitz"]
[Site "Chess.com"]
[Date "2020.10.13"]
[Round "1"]
[White "chiwii"]
[Black "SilviusTiberius"]
[Result "0-1"]
[WhiteElo "2224"]
[BlackElo "2567"]
[TimeControl "180+1"]
[EndTime "10:06:55 PDT"]
[Termination "SilviusTiberius won on time"]

1. e4 {[%clk 0:02:59.4]} 1... c5 {[%clk 0:02:59.5]} 2. Nf3 {[%clk 0:02:57.3]}
2... Nc6 {[%clk 0:02:59.6]} 3. d4 {[%clk 0:02:57.1]} 3... cxd4 {[%clk
0:03:00.5]} 4. Nxd4 {[%clk 0:02:56.1]} 4... Nf6 {[%clk 0:03:01]} 5. Nc3 {[%clk
0:02:56.2]} 5... d6 {[%clk 0:03:01.2]} 6. Be2 {[%clk 0:02:54.4]} 6... e6 {[%clk
0:02:59.9]} 7. Be3 {[%clk 0:02:53.8]} 7... Be7 {[%clk 0:02:59.8]} 8. a4 {[%clk
0:02:50.2]} 8... O-O {[%clk 0:02:59.6]} 9. O-O {[%clk 0:02:50.1]} 9... Bd7
{[%clk 0:02:58]} 10. Kh1 {[%clk 0:02:49.4]} 10... Nxd4 {[%clk 0:02:47]} 11. Bxd4
{[%clk 0:02:48.2]} 11... Bc6 {[%clk 0:02:45.6]} 12. e5 {[%clk 0:02:42.7]} 12...
dxe5 {[%clk 0:02:43.4]} 13. Bxe5 {[%clk 0:02:42.2]} 13... Qa5 {[%clk 0:02:31.3]}
14. Bg3 {[%clk 0:02:36]} 14... Rfd8 {[%clk 0:02:28.3]} 15. Qc1 {[%clk 0:02:32]}
15... Bb4 {[%clk 0:02:23.7]} 16. Nb5 {[%clk 0:02:13.5]} 16... Bd2 {[%clk
0:01:53.6]} 17. Qb1 {[%clk 0:02:12.6]} 17... Rd7 {[%clk 0:01:49.1]} 18. c3
{[%clk 0:02:06.1]} 18... Ne4 {[%clk 0:01:39.5]} 19. Be5 {[%clk 0:01:31.6]} 19...
a6 {[%clk 0:01:34.3]} 20. b4 {[%clk 0:01:31.6]} 20... Qd8 {[%clk 0:01:31.3]} 21.
Na3 {[%clk 0:01:16.1]} 21... Bxc3 {[%clk 0:01:23.3]} 22. Bxc3 {[%clk 0:01:10.8]}
22... Nxc3 {[%clk 0:01:24.2]} 23. Qe1 {[%clk 0:01:06.6]} 23... Qg5 {[%clk
0:01:10.6]} 24. Rg1 {[%clk 0:00:38]} 24... Rd2 {[%clk 0:00:58]} 25. Bf3 {[%clk
0:00:30.8]} 25... Bxf3 {[%clk 0:00:52.8]} 26. gxf3 {[%clk 0:00:30.6]} 26... Qd5
{[%clk 0:00:46.2]} 27. Qe3 {[%clk 0:00:24.9]} 27... Rd3 {[%clk 0:00:43.1]} 28.
Qg5 {[%clk 0:00:09.9]} 28... Qxf3+ {[%clk 0:00:39.7]} 29. Rg2 {[%clk 0:00:10.5]}
29... g6 {[%clk 0:00:36.5]} 30. Qh6 {[%clk 0:00:10.1]} 30... Ne4 {[%clk
0:00:33.4]} 31. Rf1 {[%clk 0:00:09.9]} 31... Nxf2+ {[%clk 0:00:27.5]} 32. Rxf2
{[%clk 0:00:09.6]} 32... Rd1+ {[%clk 0:00:27.6]} 0-1

[Event "*** SCC Grand Prix: Titled Tuesday Blitz"]
[Site "Chess.com"]
[Date "2020.10.13"]
[Round "1"]
[White "JosefineHeinemann"]
[Black "ShcufNaiRolf"]
[Result "1-0"]
[WhiteElo "2634"]
[BlackElo "2302"]
[TimeControl "180+1"]
[EndTime "10:06:57 PDT"]
[Termination "JosefineHeinemann won by resignation"]

1. e4 {[%clk 0:03:00.9]} 1... e5 {[%clk 0:02:59.3]} 2. Nf3 {[%clk 0:02:59.9]}
2... Nc6 {[%clk 0:02:59.4]} 3. Bb5 {[%clk 0:02:59]} 3... a6 {[%clk 0:02:59.5]}
4. Ba4 {[%clk 0:02:59]} 4... Nf6 {[%clk 0:02:59.5]} 5. O-O {[%clk 0:02:59.1]}
5... Be7 {[%clk 0:02:59.1]} 6. Re1 {[%clk 0:02:59.1]} 6... b5 {[%clk 0:02:53.3]}
7. Bb3 {[%clk 0:02:59.1]} 7... d6 {[%clk 0:02:53.9]} 8. c3 {[%clk 0:02:58.9]}
8... O-O {[%clk 0:02:53.4]} 9. h3 {[%clk 0:02:59.1]} 9... Nb8 {[%clk 0:02:52.9]}
10. d4 {[%clk 0:02:58.9]} 10... Nbd7 {[%clk 0:02:53.5]} 11. Nbd2 {[%clk
0:02:58]} 11... Bb7 {[%clk 0:02:53.6]} 12. Bc2 {[%clk 0:02:58.1]} 12... Re8
{[%clk 0:02:49.6]} 13. Nf1 {[%clk 0:02:58.1]} 13... Bf8 {[%clk 0:02:50.1]} 14.
Bg5 {[%clk 0:02:55.8]} 14... Qc8 {[%clk 0:02:36.4]} 15. N3d2 {[%clk 0:02:53.1]}
15... exd4 {[%clk 0:02:27.9]} 16. cxd4 {[%clk 0:02:52.3]} 16... c5 {[%clk
0:02:28.8]} 17. d5 {[%clk 0:02:51.7]} 17... h6 {[%clk 0:02:08.8]} 18. Bh4 {[%clk
0:02:50.4]} 18... c4 {[%clk 0:02:08.7]} 19. Ne3 {[%clk 0:02:49.7]} 19... g6
{[%clk 0:01:48.1]} 20. Rb1 {[%clk 0:02:35.6]} 20... Bg7 {[%clk 0:01:47]} 21. f4
{[%clk 0:02:31.4]} 21... Nc5 {[%clk 0:01:38.6]} 22. Qf3 {[%clk 0:02:22.4]} 22...
Nfd7 {[%clk 0:01:22.3]} 23. Kh2 {[%clk 0:02:13.4]} 23... a5 {[%clk 0:01:19.4]}
24. Bg3 {[%clk 0:02:00.7]} 24... Ba6 {[%clk 0:01:16]} 25. f5 {[%clk 0:01:34.5]}
25... Ne5 {[%clk 0:01:12.2]} 26. Bxe5 {[%clk 0:01:23.9]} 26... Bxe5+ {[%clk
0:01:12]} 27. Kh1 {[%clk 0:01:22.9]} 27... h5 {[%clk 0:01:02.3]} 28. g4 {[%clk
0:01:19.9]} 28... Kh8 {[%clk 0:00:18.7]} 29. gxh5 {[%clk 0:01:15.4]} 29... g5
{[%clk 0:00:18.8]} 30. Rg1 {[%clk 0:01:09.2]} 30... Rg8 {[%clk 0:00:18.6]} 31.
Ng4 {[%clk 0:00:59.6]} 31... f6 {[%clk 0:00:19]} 32. Nxe5 {[%clk 0:00:53.5]}
32... dxe5 {[%clk 0:00:19.9]} 33. Rg2 {[%clk 0:00:47.3]} 33... Nb7 {[%clk
0:00:20.2]} 34. Rbg1 {[%clk 0:00:44.5]} 34... Qc5 {[%clk 0:00:19.9]} 35. h4
{[%clk 0:00:39.1]} 35... gxh4 {[%clk 0:00:20.8]} 36. Rg6 {[%clk 0:00:35.1]}
36... Rxg6 {[%clk 0:00:19.5]} 37. fxg6 {[%clk 0:00:32.3]} 37... Kg7 {[%clk
0:00:16.1]} 38. h6+ {[%clk 0:00:31.6]} 38... Kxh6 {[%clk 0:00:16.5]} 39. Qxf6
{[%clk 0:00:31.5]} 39... Qf2 {[%clk 0:00:12.4]} 40. Qxf2 {[%clk 0:00:29.8]} 1-0